fUST/lending_fUST_20241108
["ID","MTS","AMOUNT","RATE_DAILY","PERIOD"]
[341582369,1731007840955,-502.51838893,0.00026973,2]
[341582370,1731007840967,-500.0,0.00026973,2]
[341582371,1731007840976,-500.0,0.00026973,2]
[341582372,1731007840986,-500.0,0.00026973,2]
[341582373,1731007840996,-500.0,0.00026973,2]
[341582374,1731007841006,-500.0,0.00026973,2]
[341582375,1731007841016,-500.1750996,0.00026973,2]
[341582376,1731007841026,-500.55058551,0.00026973,2]
[341582377,1731007841036,-500.0,0.00026973,2]
[341582378,1731007841045,-225.51,0.0002699,3]
[341582379,1731007841055,-676.57,0.0002699,3]
[341582380,1731007841066,-680.68162329,0.00026999,2]
[341582381,1731007841076,-226.70930574,0.00026999,2]
[341582382,1731007841086,-204.33516779,0.00026999,2]
[341582383,1731007841095,-221.83227776,0.00026999,2]
[341582384,1731007841105,-1625.45263191,0.00026999,2]
[341582702,1731007851579,-451.56046363,0.00026973,2]
[341582818,1731008191126,163.883131,0.00013973,2]
[341582819,1731008195207,175.89075,0.00020108,2]
[341582826,1731008452470,694.44444444,0.00020845,2]
[341582827,1731008455209,185.0415,0.00020032,2]
[341582851,1731008927940,341.7992924,0.00020845,2]
[341583100,1731009039813,-163.883131,0.00021209,2]
[341583102,1731009039822,-694.44444444,0.00021676,2]
[341583104,1731009039832,-154.0,0.00022,2]
[341583107,1731009039844,-154.0,0.00023014,2]
[341583109,1731009039855,-166.666666,0.00023534,2]
[341583111,1731009039866,-239.771839,0.00023607,2]
[341583113,1731009039875,-169.579516,0.00023838,2]
[341583115,1731009039885,-380.1155256,0.00024056,2]
[341583117,1731009039894,-23.43887545,0.00024176,2]
[341583119,1731009039906,-143.22779055,0.00024176,2]
[341583121,1731009039916,-300.0,0.00024214,2]
[341583123,1731009039925,-300.0,0.00024214,2]
[341583125,1731009039934,-24900.0,0.00024215,2]
[341583127,1731009039944,-178.4261124,0.00024256,2]
[341583129,1731009039953,-166.666666,0.00024817,2]
[341583131,1731009039962,-303.1091114,0.00025,2]
[341583133,1731009039971,-303.1091114,0.0002525,2]
[341583135,1731009039980,-256.62115359,0.00025293,2]
[341583137,1731009039990,-166.666666,0.00025459,2]
[341583139,1731009039999,-303.1091114,0.000255,2]
[341583141,1731009040009,-161.771772,0.00025715,2]
[341583143,1731009040019,-161.771772,0.00025733,2]
[341583145,1731009040028,-409.16827399,0.0002575,2]
[341583147,1731009040038,-161.771772,0.00025752,2]
[341583149,1731009040048,-161.771772,0.0002577,2]
[341583151,1731009040058,-161.771772,0.00025788,2]
[341583153,1731009040067,-7054.5673673,0.00025801,2]
[341583155,1731009040077,-161.771772,0.00025807,2]
[341583157,1731009040086,-161.771772,0.00025825,2]
[341583159,1731009040098,-161.771772,0.00025843,2]
[341583161,1731009040108,-166.666666,0.000261,2]
[341583163,1731009040117,-7054.5673673,0.00026215,2]
[341583165,1731009040126,-1009.68894643,0.00026215,2]
[341583167,1731009040135,-420.0,0.00026253,2]
[341583169,1731009040145,-179.831,0.00026551,13]
[341583172,1731009040160,-7054.5673673,0.00026572,2]
[341583175,1731009040180,-181.62,0.0002659,2]
[341583178,1731009040197,-420.0,0.00026636,2]
[341583181,1731009040218,-210.9853229,0.00026658,2]
[341583184,1731009040238,-303.4793862,0.00026658,2]
[341583187,1731009040257,-166.666666,0.00026742,2]
[341583190,1731009040275,-160.0,0.00026743,3]
[341583193,1731009040295,-954.41401934,0.00026769,2]
[341583752,1731009045826,-6100.15334798,0.00026769,2]
[341583754,1731009045838,-1977.0846234,0.00026861,2]
[341583756,1731009045850,-1977.08462338,0.00026871,2]
[341583758,1731009045861,-1977.08462338,0.00026881,2]
[341583760,1731009045871,-1977.08462338,0.0002689,2]
[341583762,1731009045880,-500.0,0.00026898,2]
[341583764,1731009045890,-500.0,0.00026898,2]
[341583766,1731009045900,-500.0,0.00026898,2]
[341583768,1731009045910,-500.0,0.00026898,2]
[341583770,1731009045921,-500.0,0.00026898,2]
[341583772,1731009045931,-220.35168854,0.00026898,2]
[341583774,1731009045942,-199.4398054,0.00026898,2]
[341583777,1731009045953,-439.81561689,0.00026898,2]
[341583779,1731009045965,-500.0,0.00026898,2]
[341583781,1731009045975,-500.0,0.00026898,2]
[341583783,1731009045985,-500.0,0.00026898,2]
[341583785,1731009045995,-500.0,0.00026898,2]
[341583787,1731009046005,-500.0,0.00026898,2]
[341583789,1731009046016,-500.0,0.00026898,2]
[341583791,1731009046025,-500.0,0.00026898,2]
[341583793,1731009046035,-500.0,0.00026898,2]
[341583795,1731009046045,-500.0,0.00026898,2]
[341583806,1731009046155,-500.0,0.00026898,2]
[341583808,1731009046166,-500.0,0.00026898,2]
[341583810,1731009046176,-500.0,0.00026898,2]
[341583812,1731009046187,-500.0,0.00026898,2]
[341583814,1731009046196,-500.0,0.00026898,2]
[341583816,1731009046206,-424.16912473,0.00026898,2]
[341583818,1731009046217,-500.0,0.00026898,2]
[341583820,1731009046227,-500.0,0.00026898,2]
[341583822,1731009046240,-500.0,0.00026898,2]
[341583824,1731009046250,-500.0,0.00026898,2]
[341583826,1731009046260,-500.0,0.00026898,2]
[341583828,1731009046271,-500.0,0.00026898,2]
[341583829,1731009046280,-500.0,0.00026898,2]
[341583830,1731009046290,-255.33580639,0.00026898,2]
[341583831,1731009046299,-500.0,0.00026898,2]
[341583832,1731009046310,-1977.08462338,0.000269,2]
[341583833,1731009046320,-1000.0,0.000269,2]
[341583834,1731009046330,-291.06,0.0002695,3]
[341583835,1731009046340,-873.23,0.0002695,3]
[341583836,1731009046350,-814.59975385,0.0002697,2]
[341583837,1731009046361,-500.0,0.00026973,2]
[341583838,1731009046371,-500.0,0.00026973,2]
[341583839,1731009046380,-326.25019285,0.00026973,2]
[341583840,1731009046389,-501.5983851,0.00026973,2]
[341583841,1731009046399,-500.0,0.00026973,2]
[341583842,1731009046408,-503.80771824,0.00026973,2]
[341583843,1731009046418,-500.0,0.00026973,2]
[341583844,1731009046429,-501.76828395,0.00026973,2]
[341583845,1731009046438,-500.0,0.00026973,2]
[341583846,1731009046448,-500.0,0.00026973,2]
[341583847,1731009046458,-500.0,0.00026973,2]
[341583848,1731009046467,-434.23469591,0.00026973,2]
[341583849,1731009046477,-587.93023268,0.00026973,2]
[341583850,1731009046486,-500.0,0.00026973,2]
[341583851,1731009046496,-500.0,0.00026973,2]
[341583852,1731009046506,-246.07540884,0.00026973,2]
[341583853,1731009046516,-3055.83,0.0002699,10]
[341583854,1731009046526,-11964.45191094,0.00026999,2]
[341583855,1731009046536,-1568.13312107,0.00026999,2]
[341583856,1731009046546,-167.19302817,0.00026999,2]
[341583857,1731009046556,-420.15773405,0.00026999,2]
[341583858,1731009046567,-198.67644468,0.00026999,2]
[341583860,1731009046577,-242.78392923,0.00026999,2]
[341583862,1731009046588,-319.54273923,0.00026999,2]
[341583864,1731009046598,-600.0,0.00026999,2]
[341583866,1731009046610,-349.0,0.00027,2]
[341583868,1731009046620,-206472.24170113,0.00027,2]
[341583870,1731009046629,-54295.96199188,0.00027,2]
[341583872,1731009046639,-151.0,0.00027,7]
[341583874,1731009046649,-151.0,0.00027,7]
[341583876,1731009046659,-151.0,0.00027,7]
[341583878,1731009046668,-865.6668408,0.00027,2]
[341583880,1731009046678,-150.112233,0.00027,20]
[341583882,1731009046690,-151.0,0.00027,7]
[341583884,1731009046699,-151.0,0.00027,7]
[341583886,1731009046709,-406.919723,0.00027,7]
[341583888,1731009046719,-151.0,0.00027,7]
[341583890,1731009046729,-245.401179,0.00027,7]
[341583892,1731009046739,-245.401179,0.00027,7]
[341583894,1731009046749,-151.0,0.00027,7]
[341583896,1731009046759,-2793.469292,0.00027,7]
[341583898,1731009046769,-2793.469292,0.00027,7]
[341583900,1731009046778,-151.0,0.00027,7]
[341583902,1731009046789,-151.0,0.00027,7]
[341583904,1731009046798,-151.684109,0.00027,7]
[341583906,1731009046808,-151.0,0.00027,7]
[341583908,1731009046817,-151.0,0.00027,7]
[341583910,1731009046827,-151.0,0.00027,7]
[341583912,1731009046836,-447.196423,0.00027,7]
[341583914,1731009046845,-836.68754,0.00027,7]
[341583916,1731009046858,-447.196423,0.00027,7]
[341583918,1731009046868,-836.68754,0.00027,7]
[341583920,1731009046880,-154.644665,0.00027,7]
[341583922,1731009046893,-836.68754,0.00027,7]
[341583924,1731009046911,-836.68754,0.00027,7]
[341583926,1731009046923,-151.0,0.00027,7]
[341583928,1731009046933,-1830.732621,0.00027,7]
[341583930,1731009046943,-1830.732621,0.00027,7]
[341583932,1731009046953,-293.59724,0.00027,7]
[341583934,1731009046964,-151.0,0.00027,7]
[341583936,1731009046973,-151.0,0.00027,7]
[341583938,1731009046981,-784.592861,0.00027,7]
[341583940,1731009046991,-784.592861,0.00027,7]
[341583942,1731009047001,-1549.26289,0.00027,7]
[341583944,1731009047010,-1549.26289,0.00027,7]
[341583946,1731009047019,-1549.26289,0.00027,7]
[341583948,1731009047029,-1549.26289,0.00027,7]
[341583950,1731009047041,-151.0,0.00027,7]
[341583952,1731009047051,-151.0,0.00027,7]
[341583954,1731009047060,-151.0,0.00027,7]
[341583956,1731009047070,-555.890068,0.00027,7]
[341583958,1731009047079,-555.890068,0.00027,7]
[341583960,1731009047088,-151.0,0.00027,7]
[341583962,1731009047097,-754.766015,0.00027,7]
[341583964,1731009047107,-754.766015,0.00027,7]
[341583966,1731009047116,-611.052262,0.00027,7]
[341583968,1731009047126,-3177.192209,0.00027,7]
[341583970,1731009047136,-611.052262,0.00027,7]
[341583972,1731009047147,-3177.192209,0.00027,7]
[341583974,1731009047157,-151.0,0.00027,7]
[341583976,1731009047169,-151.0,0.00027,7]
[341583978,1731009047178,-151.389656,0.00027,7]
[341583980,1731009047187,-193.194073,0.00027,7]
[341583982,1731009047198,-193.194073,0.00027,7]
[341583984,1731009047207,-193.194073,0.00027,7]
[341583986,1731009047216,-193.194073,0.00027,7]
[341583988,1731009047226,-226.934341,0.00027,7]
[341583990,1731009047236,-226.934341,0.00027,7]
[341583992,1731009047249,-226.934341,0.00027,7]
[341583994,1731009047258,-226.934341,0.00027,7]
[341583996,1731009047267,-151.0,0.00027,7]
[341583998,1731009047276,-151.0,0.00027,7]
[341584000,1731009047287,-151.0,0.00027,7]
[341584002,1731009047296,-151.0,0.00027,7]
[341584004,1731009047306,-153.100962,0.00027,7]
[341584006,1731009047316,-181.592,0.0002724,3]
[341584008,1731009047326,-150.112233,0.000273,12]
[341584010,1731009047336,-219.99820192,0.00027397,2]
[341584012,1731009047346,-500.0,0.00027397,2]
[341584014,1731009047359,-311.47428681,0.00027397,2]
[341584017,1731009047369,-500.0,0.00027397,2]
[341584019,1731009047378,-229.18159197,0.00027397,2]
[341584021,1731009047388,-500.0,0.00027397,2]
[341584023,1731009047398,-500.0,0.00027397,2]
[341584025,1731009047408,-500.0,0.00027397,2]
[341584027,1731009047420,-500.0,0.00027397,2]
[341584029,1731009047432,-551.8082405,0.00027397,2]
[341584031,1731009047444,-500.0,0.00027397,7]
[341584033,1731009047456,-151.666021,0.00027397,7]
[341584035,1731009047467,-193.194073,0.00027397,7]
[341584037,1731009047477,-193.194073,0.00027397,7]
[341584039,1731009047486,-226.934341,0.00027397,7]
[341584041,1731009047496,-226.934341,0.00027397,7]
[341584043,1731009047505,-151.0,0.00027397,7]
[341584045,1731009047514,-500.0,0.00027397,2]
[341584047,1731009047526,-150.112233,0.000276,20]
[341584049,1731009047541,-150.112233,0.000276,13]
[341584059,1731009047627,-160.0,0.00027708,4]
[341584061,1731009047637,-181.619,0.0002789,10]
[341584063,1731009047648,-150.112233,0.000279,16]
[341584065,1731009047659,-150.112233,0.000279,19]
[341584067,1731009047669,-153.0,0.00028027,30]
[341584069,1731009047678,-150.112233,0.000282,10]
[341584071,1731009047688,-500.0,0.00028219,7]
[341584073,1731009047698,-150.112233,0.000283,12]
[341584075,1731009047708,-582.12,0.0002832,3]
[341584077,1731009047717,-851.7173634,0.00028342,5]
[341584079,1731009047726,-1000.0,0.00028342,5]
[341584081,1731009047735,-1000.0,0.00028342,2]
[341584083,1731009047745,-1000.0,0.00028342,5]
[341584085,1731009047754,-1000.0,0.00028342,5]
[341584087,1731009047763,-181.623,0.0002839,2]
[341584089,1731009047771,-163.883131,0.00028445,2]
[341584091,1731009047781,-587.0,0.00028464,2]
[341584093,1731009047790,-150.112233,0.000285,13]
[341584095,1731009047800,-495.04669735,0.00028528,2]
[341584097,1731009047810,-181.581,0.0002854,13]
[341584099,1731009047819,-163.7546425,0.00028575,30]
[341584101,1731009047828,-500.0,0.00028594,7]
[341584103,1731009047837,-150.112233,0.000286,17]
[341584105,1731009047847,-160.0,0.00028674,5]
[341584107,1731009047857,-500.0,0.00028767,2]
[341584109,1731009047867,-150.112233,0.000288,10]
[341584111,1731009047876,-150.112233,0.000289,18]
[341584113,1731009047885,-154.0,0.00028997,2]
[341584115,1731009047894,-1000.0,0.00029,29]
[341584118,1731009047914,-55000.0,0.00029,8]
[341584121,1731009047926,-193.194073,0.00029,7]
[341584123,1731009047935,-193.194073,0.00029,7]
[341584125,1731009047947,-226.934341,0.00029,7]
[341584127,1731009047958,-226.934341,0.00029,7]
[341584129,1731009047968,-151.0,0.00029,7]
[341584131,1731009047978,-216.77187294,0.00029041,7]
[341584133,1731009047988,-307.0522318,0.00029068,30]
[341584135,1731009047998,-150.112233,0.000291,16]
[341584138,1731009048009,-151.0,0.00029108,7]
[341584140,1731009048019,-611.052262,0.00029108,7]
[341584142,1731009048030,-611.052262,0.00029108,7]
[341584144,1731009048041,-160.0,0.00029157,3]
[341584146,1731009048052,-181.559,0.0002919,7]
[341584148,1731009048062,-150.112233,0.000292,10]
[341584150,1731009048072,-151.0,0.00029272,7]
[341584152,1731009048082,-151.0,0.00029272,7]
[341584154,1731009048092,-151.0,0.00029272,7]
[341584156,1731009048101,-225.016779,0.00029272,7]
[341584158,1731009048112,-1830.732621,0.00029272,7]
[341584160,1731009048122,-1830.732621,0.00029272,7]
[341584162,1731009048131,-784.592861,0.00029272,7]
[341584164,1731009048141,-784.592861,0.00029272,7]
[341584166,1731009048151,-151.0,0.00029272,7]
[341584168,1731009048161,-151.0,0.00029272,7]
[341584170,1731009048171,-151.0,0.00029272,7]
[341584172,1731009048182,-555.890068,0.00029272,7]
[341584174,1731009048191,-555.890068,0.00029272,7]
[341584176,1731009048202,-587.0,0.00029299,2]
[341584178,1731009048213,-150.112233,0.000294,19]
[341584180,1731009048223,-151.0,0.00029485,7]
[341584182,1731009048238,-447.196423,0.00029485,7]
[341584184,1731009048247,-447.196423,0.00029485,7]
[341584186,1731009048257,-151.0,0.00029485,7]
[341584188,1731009048267,-151.0,0.00029485,7]
[341584190,1731009048278,-3177.192209,0.00029485,7]
[341584192,1731009048288,-3177.192209,0.00029485,7]
[341584195,1731009048298,-150.112233,0.000295,19]
[341584197,1731009048308,-153.0,0.00029515,2]
[341584198,1731009048319,-5158.22349322,0.00029537,2]
[341584201,1731009048336,-453.0,0.00029537,2]
[341584203,1731009048347,-419.81826451,0.00029537,2]
[341584206,1731009048361,-714.27373382,0.00029537,2]
[341584208,1731009048377,-2600.58266006,0.00029537,2]
[341584211,1731009048388,-7864.04040345,0.00029537,2]
[341584214,1731009048409,-4582.44485583,0.00029537,2]
[341585250,1731009065237,694.44444444,0.00020845,2]
[341585601,1731009220747,163.883131,0.00013973,2]
[341585620,1731009676153,694.44444444,0.00020845,2]
[341585622,1731009741089,159.715596,0.00013973,2]
[341585629,1731010084270,40550.97471781,0.0002,2]
[341585978,1731010239898,-694.44444444,0.00021796,2]
[341585980,1731010239908,-163.883131,0.00022759,2]
[341585982,1731010239918,-167.971015,0.00023008,2]
[341585984,1731010239928,-239.7718407,0.00023762,2]
[341585986,1731010239938,-167.971015,0.00024053,2]
[341585988,1731010239947,-300.0,0.00024567,2]
[341585991,1731010239956,-300.0,0.00024567,2]
[341585993,1731010239966,-673.12596429,0.00024567,2]
[341585995,1731010239975,-2327.10802206,0.00024568,8]
[341585997,1731010239987,-14396.8,0.00024568,8]
[341586199,1731010246217,-63119.39337229,0.00024568,8]
[341586200,1731010246227,-4179.03283284,0.000247,2]
[341586201,1731010246238,-500.0,0.000248,2]
[341586202,1731010246249,-500.0,0.000248,2]
[341586203,1731010246260,-500.0,0.000248,2]
[341586204,1731010246270,-2754.62,0.00024871,10]
[341586205,1731010246281,-500.0,0.00024881,2]
[341586206,1731010246291,-500.0,0.00024881,2]
[341586207,1731010246301,-269.35212497,0.00024881,2]
[341586208,1731010246312,-500.0,0.00024881,2]
[341586209,1731010246322,-500.0,0.00024881,2]
[341586210,1731010246332,-500.0,0.00024881,2]
[341586211,1731010246343,-500.0,0.00024881,2]
[341586212,1731010246355,-500.0,0.00024881,2]
[341586213,1731010246365,-500.0,0.00024881,2]
[341586214,1731010246374,-500.0,0.00024881,2]
[341586215,1731010246383,-467.61684503,0.00024881,2]
[341586217,1731010258538,165.057058,0.00013973,2]
[341586218,1731010288146,694.44444444,0.00020845,2]
[341586225,1731010893911,1299.0,0.00019178,2]
[341586226,1731010898930,694.44444444,0.00020845,2]
[341586227,1731010957709,165.057058,0.00013973,2]
[341586258,1731011180039,-167.971015,0.00022759,2]
[341586259,1731011180062,-169.579516,0.00022879,2]
[341586260,1731011180083,-300.0,0.00023058,2]
[341586261,1731011180105,-300.0,0.00023058,2]
[341586262,1731011180127,-24900.0,0.00023059,2]
[341586263,1731011180149,-165.057058,0.00024224,2]
[341586264,1731011180171,-448.75064286,0.0002424,2]
[341586265,1731011180195,-3411.64176814,0.0002424,2]
[341586267,1731011216156,-694.44444444,0.00023794,2]
[341586268,1731011216179,-19080.894071,0.0002424,2]
[341586269,1731011216203,-3656.65372877,0.00024681,2]
[341586270,1731011216224,-1005.64881194,0.00024781,2]
[341586271,1731011216248,-856.72,0.0002479,3]
[341586272,1731011216271,-1328.42,0.0002479,10]
[341586273,1731011216298,-2074.11,0.0002479,10]
[341586274,1731011216322,-500.0,0.00024799,2]
[341586275,1731011216347,-500.0,0.00024799,2]
[341586276,1731011216371,-500.0,0.00024799,2]
[341586277,1731011216394,-500.0,0.00024799,2]
[341586278,1731011216417,-500.0,0.00024799,2]
[341586279,1731011216440,-500.0,0.00024799,2]
[341586280,1731011216465,-500.0,0.00024799,2]
[341586281,1731011216487,-500.0,0.00024799,2]
[341586282,1731011216510,-507.03591063,0.00024799,2]
[341586283,1731011216534,-500.0,0.00024799,2]
[341586284,1731011216558,-500.0,0.00024799,2]
[341586285,1731011216580,-409.27482701,0.00024799,2]
[341586286,1731011216603,-500.0,0.00024799,2]
[341586287,1731011216627,-613.34184707,0.00024799,2]
[341586288,1731011216751,-500.0,0.00024799,2]
[341586289,1731011216776,-500.0,0.00024799,2]
[341586290,1731011216800,-500.0,0.00024799,2]
[341586291,1731011216823,-500.0,0.00024799,2]
[341586292,1731011216847,-500.0,0.00024799,2]
[341586293,1731011216872,-500.0,0.00024799,2]
[341586294,1731011216899,-500.0,0.00024799,2]
[341586295,1731011216924,-500.0,0.00024799,2]
[341586296,1731011216950,-500.0,0.00024799,2]
[341586297,1731011216981,-500.0,0.00024799,2]
[341586298,1731011217005,-500.0,0.00024799,2]
[341586299,1731011217029,-500.0,0.00024799,2]
[341586300,1731011217052,-500.0,0.00024799,2]
[341586301,1731011217075,-500.0,0.00024799,2]
[341586302,1731011217098,-500.0,0.00024799,2]
[341586303,1731011217123,-500.0,0.00024799,2]
[341586304,1731011217148,-209.72082988,0.00024799,2]
[341586305,1731011217170,-500.0,0.00024799,2]
[341586306,1731011217192,-500.0,0.00024799,2]
[341586307,1731011217218,-500.0,0.00024799,2]
[341586308,1731011217246,-500.0,0.00024799,2]
[341586309,1731011217270,-500.0,0.00024799,2]
[341586310,1731011217293,-500.0,0.00024799,2]
[341586311,1731011217331,-500.0,0.00024799,2]
[341586312,1731011217359,-500.0,0.00024799,2]
[341586313,1731011217384,-500.0,0.00024799,2]
[341586314,1731011217408,-500.0,0.00024799,2]
[341586315,1731011217436,-500.0,0.00024799,2]
[341586316,1731011217463,-500.0,0.00024799,2]
[341586317,1731011217489,-500.0,0.00024799,2]
[341586318,1731011217515,-500.0,0.00024799,2]
[341586319,1731011217543,-500.0,0.00024799,2]
[341586320,1731011217570,-500.0,0.00024799,2]
[341586321,1731011217597,-500.0,0.00024799,2]
[341586322,1731011217623,-500.0,0.00024799,2]
[341586323,1731011217649,-500.0,0.00024799,2]
[341586324,1731011217674,-500.0,0.00024799,2]
[341586325,1731011217699,-500.0,0.00024799,2]
[341586326,1731011217733,-500.0,0.00024799,2]
[341586327,1731011217759,-500.0,0.00024799,2]
[341586328,1731011217785,-500.0,0.00024799,2]
[341586329,1731011217811,-500.0,0.00024799,2]
[341586330,1731011217834,-500.0,0.00024799,2]
[341586331,1731011217951,-500.0,0.00024799,2]
[341586332,1731011217978,-500.0,0.00024799,2]
[341586333,1731011218004,-500.0,0.00024799,2]
[341586334,1731011218034,-500.0,0.00024799,2]
[341586335,1731011218060,-569.41910005,0.00024799,2]
[341586336,1731011218086,-500.0,0.00024799,2]
[341586337,1731011218110,-500.0,0.00024799,2]
[341586338,1731011218135,-500.0,0.00024799,2]
[341586339,1731011218160,-500.0,0.00024799,2]
[341586340,1731011218185,-500.0,0.00024799,2]
[341586341,1731011218215,-500.0,0.00024799,2]
[341586342,1731011218239,-500.0,0.00024799,2]
[341586343,1731011218264,-500.0,0.00024799,2]
[341586344,1731011218287,-500.0,0.00024799,2]
[341586345,1731011218311,-500.0,0.00024799,2]
[341586346,1731011218337,-500.0,0.00024799,2]
[341586347,1731011218362,-269.31642921,0.00024799,2]
[341586360,1731011272027,-694.44444444,0.00023204,2]
[341586361,1731011272051,-300.0,0.00024798,2]
[341586362,1731011272075,-300.0,0.00024798,2]
[341586363,1731011272097,-230.68357079,0.00024799,2]
[341586364,1731011272120,-613.04965171,0.00024799,2]
[341586365,1731011272146,-500.0,0.00024799,2]
[341586366,1731011272171,-500.0,0.00024799,2]
[341586367,1731011272194,-427.82233306,0.00024799,2]
[341586386,1731011295388,653863.17787211,0.00032412,32]
[341586407,1731011327081,151.54920724,0.0002,7]
[341586539,1731011432375,-783.86080226,0.000209,2]
[341586540,1731011432385,-300.0,0.00020999,2]
[341586541,1731011432395,-300.0,0.00020999,2]
[341586542,1731011432404,-10000.0,0.00021,5]
[341586543,1731011432416,-1476.29234634,0.00021,2]
[341586544,1731011432426,-6333.1831522,0.00021,2]
[341586765,1731011440384,-3919.28196842,0.00021,2]
[341586766,1731011440393,-731.3911077,0.00021,2]
[341586977,1731011442700,-52.46969455,0.00021,2]
[341586979,1731011442711,-783.86080225,0.000211,2]
[341586980,1731011442720,-178.650918,0.00021182,2]
[341586981,1731011442730,-412.38099926,0.000212,2]
[341586982,1731011442742,-96.88823528,0.000212,2]
[341586984,1731011442751,-178.650918,0.00021288,2]
[341586985,1731011442761,-226.8525269,0.000219,2]
[341586986,1731011442774,-4620.09526064,0.000219,2]
[341586987,1731011442784,-8826.63620198,0.00022,2]
[341586988,1731011442794,-283.73817225,0.00022,2]
[341586989,1731011442805,-694.44444444,0.00022025,2]
[341586990,1731011442815,-420.0,0.00022842,2]
[341586992,1731011442826,-420.0,0.00023099,2]
[341586993,1731011442836,-401.49636629,0.00023387,2]
[341586994,1731011442846,-4846.94778751,0.00023387,2]
[341586995,1731011442858,-500.0,0.00024799,2]
[341586996,1731011442867,-500.0,0.00024799,2]
[341586997,1731011442877,-179.26020523,0.00024799,2]
[341586998,1731011442886,-500.0,0.00024799,2]
[341586999,1731011442896,-500.0,0.00024799,2]
[341587000,1731011442908,-557.64288793,0.00024799,2]
[341587001,1731011442917,-500.0,0.00024799,2]
[341587002,1731011442932,-500.0,0.00024799,2]
[341587003,1731011442949,-162.80987886,0.00024799,2]
[341587004,1731011442958,-500.0,0.00024799,2]
[341587005,1731011442968,-500.0,0.00024799,2]
[341587006,1731011442978,-500.0,0.00024799,2]
[341587007,1731011442989,-500.0,0.00024799,2]
[341587008,1731011442999,-270.97208299,0.00024799,2]
[341587009,1731011443009,-500.0,0.00024799,2]
[341587010,1731011443021,-518.57258671,0.00024799,2]
[341587011,1731011443033,-442.88431432,0.00024799,2]
[341587012,1731011443043,-500.0,0.00024799,2]
[341587013,1731011443054,-300.0,0.00024799,2]
[341587014,1731011443063,-500.0,0.00024799,2]
[341587015,1731011443072,-500.0,0.00024799,2]
[341587016,1731011443082,-500.0,0.00024799,2]
[341587017,1731011443093,-500.0,0.00024799,2]
[341587018,1731011443105,-7348.1050442,0.000248,2]
[341587037,1731011443343,-2367.48213182,0.000248,2]
[341587040,1731011443358,-39839.27529063,0.000248,2]
[341587042,1731011443368,-500.0,0.000248,2]
[341587044,1731011443377,-500.0,0.000248,2]
[341587046,1731011443387,-587.0,0.00024847,2]
[341587048,1731011443396,-4846.94778751,0.00024875,2]
[341587050,1731011443407,-522.22930782,0.00025,120]
[341587053,1731011443422,-394.35718864,0.00025,2]
[341587055,1731011443432,-161.0,0.00025,2]
[341587057,1731011443444,-587.0,0.00025409,2]
[341587066,1731011443541,-167.971015,0.00025861,2]
[341587068,1731011443551,-1000.0,0.0002617,2]
[341587070,1731011443562,-1728.43,0.00026352,10]
[341587072,1731011443571,-4846.94778751,0.00026362,2]
[341587074,1731011443581,-500.0,0.0002645,2]
[341587076,1731011443591,-179.832,0.00026581,13]
[341587077,1731011443600,-160.0,0.00026904,3]
[341587079,1731011443611,-482.90939667,0.00026999,2]